bitfinex-derivatives/quotes_ETHF0:USTF0_20250115
["timestamp","ask_amount","ask_price","bid_price","bid_amount"]
[1736945992228,1.17105183,3203.9,3203.8,0.31227]
[1736945992625,1.17105183,3203.9,3203.8,41.11227]
[1736945994528,0.31222,3204.4,3204.3,0.31221]
[1736945994730,1.95267183,3204.4,3204.3,0.31221]
[1736945994929,5.51553651,3204.4,3204.3,0.31221]
[1736945995925,1.95266183,3204.4,3204.3,0.31221]
[1736945997338,0.31219,3204.7,3204.6,0.31218]
[1736945997525,0.77639,3204.7,3204.6,0.31218]
[1736945998935,0.3122,3204.6,3204.5,0.31219]
[1736945999135,1.48325183,3204.6,3204.5,0.31219]
[1736945999339,0.31222,3204.3,3204.2,0.31221]
[1736945999534,0.31223,3204.2,3204.1,3.52003]
[1736945999735,1.71473,3204.2,3204.1,3.52003]
[1736946000442,1.25863,3204.2,3204.1,3.52003]
[1736946001138,2.42968183,3204.2,3204.1,3.2078]
[1736946001442,0.31227,3203.8,3203.7,0.31226]
[1736946002040,1.17105183,3203.9,3203.8,0.31227]
[1736946002342,1.48331183,3203.9,3203.8,0.31227]
[1736946002834,1.17105183,3203.9,3203.8,0.31227]
[1736946003041,1.48327183,3204.3,3204.2,0.31223]
[1736946003228,1.17105183,3204.3,3204.2,0.31223]
[1736946003434,1.17105183,3204.3,3204.1,3.52003]
[1736946003435,0.31223,3204.2,3204.1,3.52003]
[1736946003743,0.04279746,3204.2,3204.1,3.52003]
[1736946004538,0.04279746,3204.2,3204.1,44.32003]
[1736946009539,0.04279746,3204.2,3204.1,45.49108183]
[1736946013546,0.04279746,3204.2,3204.1,44.32003]
[1736946014441,0.4943,3204.8,3204.1,44.0078]
[1736946014647,0.9694,3204.8,3204.7,0.31218]
[1736946015146,0.4751,3204.8,3204.7,0.78598]
[1736946015842,0.4946,3205.1,3205.0,0.31215]
[1736946016044,0.78011,3206.1,3205.0,5.15921183]
[1736946016248,2.61255183,3205.6,3205.5,0.3121]
[1736946016449,6.15986448,3205.6,3205.5,41.1121]
[1736946016751,2.61255183,3205.6,3205.5,41.1121]
[1736946017450,0.4795,3205.6,3205.5,41.1121]
[1736946017645,1.65055183,3205.6,3205.5,41.1121]
[1736946018545,1.96264183,3205.6,3205.5,40.8]
[1736946018749,5.16665344,3205.6,3205.0,3.2078]
[1736946018943,5.16665344,3205.6,3205.0,3.51995]
[1736946018944,1.17105183,3205.1,3205.0,3.51995]
[1736946019344,0.9625,3205.1,3205.0,3.51995]
[1736946019750,1.27464,3205.1,3205.0,3.51995]
[1736946019949,0.9625,3205.1,3205.0,3.51995]
[1736946020950,0.9625,3205.1,3205.0,44.31995]
[1736946021648,0.4939,3205.5,3205.4,0.31211]
[1736946021946,0.4939,3205.5,3205.4,3.51991]
[1736946023949,0.9474,3205.6,3205.4,3.2078]
[1736946024149,0.9474,3205.6,3205.5,0.3121]
[1736946024852,0.5007,3206.0,3205.5,0.78026]
[1736946025145,0.4593,3205.7,3205.6,0.31209]
[1736946025344,0.4593,3205.7,3205.6,41.11209]
[1736946035257,0.4848,3205.9,3205.8,0.31207]
[1736946036959,0.4862,3206.2,3205.8,3.51987]
[1736946037261,0.4862,3206.2,3206.1,0.31204]
[1736946038254,0.9673,3206.2,3206.1,0.31204]
[1736946038655,0.31201,3206.5,3205.9,0.4973]
[1736946038857,0.31201,3206.5,3206.4,0.31201]
[1736946039057,0.31203,3206.3,3206.2,0.31201]
[1736946039564,0.31203,3206.3,3206.2,41.11201]
[1736946039759,0.31203,3206.3,3206.2,40.8]
[1736946040562,0.31203,3206.3,3206.2,41.11203]
[1736946040974,0.31201,3206.5,3206.4,0.312]
[1736946041363,3.56785492,3206.5,3206.4,0.312]
[1736946042159,3.25584492,3206.5,3206.4,0.312]
[1736946042355,1.41,3206.6,3206.2,40.8]
[1736946042356,1.41,3206.6,3206.3,0.4987]
[1736946042560,1.722,3206.6,3206.5,0.312]
[1736946043667,4.70440509,3206.6,3206.2,40.8]
[1736946043864,2.47040085,3206.4,3205.8,3.2078]
[1736946044061,2.78246085,3205.9,3205.8,3.2078]
[1736946044569,6.07686594,3205.9,3205.8,3.2078]
[1736946047369,0.31208,3205.7,3205.6,3.2078]
[1736946053374,0.31209,3205.6,3205.5,40.8]
[1736946053574,3.73269085,3205.6,3205.5,40.8]
[1736946053779,3.73269085,3205.6,3205.1,3.2078]
[1736946053780,0.31213,3205.2,3205.1,3.2078]
[1736946054179,0.31213,3205.2,3205.1,44.31994]
[1736946054478,0.31213,3205.2,3205.1,44.0078]
[1736946054681,0.31213,3205.2,3205.1,44.31994]
[1736946054880,0.31213,3205.2,3205.1,44.0078]
[1736946055176,0.31213,3205.2,3205.1,44.31994]
[1736946055378,0.31213,3205.2,3205.1,44.0078]
[1736946055988,0.31213,3205.2,3205.1,40.8]
[1736946056190,0.31213,3205.2,3205.1,44.0078]
[1736946057088,0.31213,3205.2,3205.1,44.31994]
[1736946057491,0.31213,3205.2,3205.1,44.0078]
[1736946058986,0.31213,3205.2,3205.1,44.31994]
[1736946065193,0.31213,3205.2,3205.1,44.0078]
[1736946065597,0.77323,3205.2,3205.1,44.0078]
[1736946068486,0.77323,3205.2,3205.1,40.8]
[1736946069699,0.31213,3205.2,3205.1,40.8]
[1736946071495,0.4704,3205.4,3205.0,3.2078]
[1736946071700,0.31214,3205.2,3205.1,0.31213]
[1736946072100,0.31214,3205.2,3205.1,41.11213]
[1736946072694,0.31214,3205.2,3205.1,40.8]
[1736946075103,0.31214,3205.2,3205.1,41.11214]
[1736946075598,1.25848,3205.5,3205.1,40.8]
[1736946075599,0.4782,3205.5,3205.1,40.8]
[1736946075795,0.31212,3205.3,3205.2,0.77581]
[1736946077000,0.4628,3205.6,3205.2,0.4637]
[1736946077200,0.78019,3205.8,3205.7,0.31207]
[1736946077201,0.31208,3205.8,3205.7,0.31207]
[1736946077700,3.46610085,3206.3,3205.5,0.4953]
[1736946078004,0.31205,3206.1,3206.0,0.31204]
[1736946078306,3.46610085,3206.3,3205.9,0.9653]
[1736946078496,0.31201,3206.5,3206.4,0.31201]
[1736946078691,0.4743,3206.6,3206.4,40.8]
[1736946078996,0.312,3206.6,3206.5,0.312]
[1736946079800,0.312,3206.5,3206.4,41.11201]
[1736946080001,0.312,3206.5,3206.4,40.8]
[1736946080705,0.312,3206.5,3206.4,41.11201]
[1736946080896,0.312,3206.6,3206.5,0.312]
[1736946081205,0.31199,3206.7,3206.6,0.31198]
[1736946081397,0.31199,3206.7,3206.6,3.51978]
[1736946082203,0.77938,3206.8,3206.7,0.31198]
[1736946082506,0.31198,3206.7,3206.6,3.51978]
[1736946084308,0.77938,3206.8,3206.7,0.31198]
[1736946085405,0.31198,3206.7,3206.6,3.51979]
[1736946086605,0.77938,3206.8,3206.7,0.31198]
[1736946088410,0.31198,3206.8,3206.7,0.31198]
[1736946088607,0.78627,3206.9,3206.8,0.31197]
[1736946088908,0.4743,3206.9,3206.8,0.31197]
[1736946089105,0.80975,3207.1,3207.0,0.31195]
[1736946089603,0.80974,3207.1,3207.0,0.31195]
[1736946089914,0.31194,3207.2,3207.1,0.31194]
[1736946090711,0.31194,3207.2,3206.6,3.98778]
[1736946090712,3.99653,3207.3,3207.2,0.31193]
[1736946091711,3.6846,3207.3,3207.2,0.31193]
[1736946092013,3.99652,3207.3,3207.2,0.31193]
[1736946092203,3.6846,3207.3,3207.2,0.31193]
[1736946092711,3.99652,3207.3,3207.2,0.31193]
[1736946094013,0.3119,3207.6,3207.5,0.31189]
[1736946094613,0.3119,3207.6,3207.5,41.11189]
[1736946094910,2.78230085,3207.6,3207.5,40.8]
[1736946095210,0.31192,3207.3,3207.2,0.77513]
[1736946095619,0.31192,3207.3,3207.2,41.57513]
[1736946098711,2.47040085,3207.6,3207.2,41.2632]
[1736946098914,0.31192,3207.5,3207.4,0.31191]
[1736946101613,0.3119,3207.7,3207.6,0.31189]
[1736946101817,0.31188,3207.8,3207.7,0.31188]
[1736946102817,0.78006,3208.0,3207.9,0.31187]
[1736946103116,0.4682,3208.0,3207.9,0.31187]
[1736946103818,0.5014,3208.1,3208.0,0.31186]
[1736946104614,0.4629,3208.4,3207.9,0.9595]
[1736946104811,0.77473,3208.4,3208.3,0.31183]
[1736946105115,0.77473,3208.4,3207.9,1.73917]
[1736946105116,0.31184,3208.3,3208.2,0.31183]
[1736946105317,0.31184,3208.3,3208.2,41.11183]
[1736946107319,0.31184,3208.3,3208.2,0.31184]
[1736946107714,0.31184,3208.3,3208.2,41.11184]
[1736946108111,0.77472,3208.4,3208.3,0.31183]
[1736946108615,0.31182,3208.4,3208.3,0.78353]
[1736946111019,0.78601,3208.5,3208.4,0.31182]
[1736946113420,0.4742,3208.5,3208.4,0.31182]
[1736946113626,0.78601,3208.5,3208.4,0.31182]
[1736946114327,0.31182,3208.4,3208.3,3.99132]
[1736946115727,0.4742,3208.5,3208.3,3.6795]
[1736946115929,0.78601,3208.5,3208.4,0.31182]
[1736946116223,0.4742,3208.5,3208.3,3.6795]
[1736946116427,0.31182,3208.4,3208.3,3.99132]
[1736946116624,0.78601,3208.5,3208.4,0.31182]
[1736946118533,0.5026,3208.7,3208.3,3.6795]
[1736946118735,0.3118,3208.6,3208.5,0.3118]
[1736946122829,0.4645,3208.8,3208.7,0.31179]
[1736946123634,0.31177,3208.9,3208.5,2.47040085]
[1736946123945,0.31177,3208.9,3208.8,0.31178]
[1736946125928,0.31177,3209.0,3208.9,0.31176]
[1736946127130,0.31177,3209.0,3208.9,41.11176]
[1736946129436,3.6948,3209.1,3208.9,40.8]
[1736946129623,4.00656,3209.1,3209.0,0.31176]
[1736946129934,3.6948,3209.1,3209.0,0.31176]
[1736946131524,4.00655,3209.1,3209.0,0.31176]
[1736946134031,3.6948,3209.1,3209.0,0.31176]
[1736946134338,4.00655,3209.1,3209.0,0.31176]
[1736946135740,3.51955,3209.1,3209.0,0.31176]
[1736946135936,3.2078,3209.1,3209.0,0.79316]
[1736946136231,3.51955,3209.1,3209.0,0.79316]
[1736946136935,0.31175,3209.1,3209.0,0.79316]
[1736946137438,0.4763,3209.2,3209.0,0.4814]
[1736946137634,0.4763,3209.2,3209.1,0.31175]
[1736946138137,0.4763,3209.2,3209.1,0.77435]
[1736946138438,0.81113,3209.4,3209.3,0.31173]
[1736946140135,0.31175,3209.1,3209.0,3.51956]
[1736946140328,2.78215085,3209.1,3209.0,3.2078]
[1736946140530,2.78215085,3209.1,3209.0,3.51956]
[1736946140731,0.31175,3209.1,3209.0,3.51956]
[1736946140936,0.79145,3209.1,3209.0,44.31956]
[1736946141127,0.4797,3209.1,3209.0,44.31956]
[1736946141331,0.4762,3209.2,3209.1,0.31175]
[1736946141835,0.4762,3209.2,3209.1,0.79995]
[1736946144233,0.4762,3209.2,3209.1,1.27055]
[1736946145334,0.4762,3209.2,3209.1,0.31175]
[1736946145534,0.78794,3209.2,3209.1,0.31175]
[1736946150042,0.4762,3209.2,3209.1,0.31175]
[1736946150946,0.78794,3209.2,3209.1,0.31175]
[1736946153039,0.78794,3209.2,3209.0,44.0078]
[1736946153237,2.78215085,3209.1,3209.0,3.2078]
[1736946153646,6.26390096,3209.1,3209.0,3.2078]
[1736946153945,6.26390096,3209.1,3209.0,44.0078]
[1736946154249,6.26390096,3209.1,3209.0,3.2078]
[1736946154839,9.15995096,3209.1,3208.7,40.8]
[1736946155133,0.31178,3208.8,3208.7,40.8]
[1736946155939,0.31178,3208.8,3208.7,41.11179]
[1736946156139,0.79958,3208.8,3208.7,41.11179]
[1736946159334,0.4878,3208.8,3208.7,41.11179]
[1736946160447,3.24972085,3209.4,3208.7,40.8]
[1736946160748,0.31176,3209.1,3209.0,0.31175]
[1736946165352,0.9736,3209.3,3208.8,4.6354]
[1736946165551,0.31175,3209.2,3209.1,0.31174]
[1736946168652,0.4709,3209.3,3209.0,3.2078]
[1736946168849,0.78264,3209.3,3209.2,0.31174]
[1736946169154,0.31172,3209.4,3209.3,0.31172]
[1736946170849,0.31175,3209.1,3209.0,3.2078]
[1736946171054,0.31177,3208.9,3208.8,0.77327]
[1736946179657,0.77934,3209.3,3208.8,0.4615]
[1736946179853,0.80946,3209.2,3209.1,0.31174]
[1736946180457,6.45742085,3209.8,3209.2,0.77934]
[1736946180654,0.79171,3209.6,3209.5,0.3117]
[1736946181055,0.79171,3209.6,3209.5,41.1117]
[1736946181261,0.48,3209.6,3209.5,41.1117]
[1736946181763,0.787,3209.7,3209.5,41.1117]
[1736946181764,0.787,3209.7,3209.6,0.3117]
[1736946184461,0.787,3209.7,3209.6,0.7868]
[1736946184766,0.3117,3209.6,3209.5,40.8]
[1736946184960,0.31175,3209.1,3209.0,3.2078]
[1736946185160,0.31176,3209.0,3208.9,4.86334172]
[1736946185360,1.71476,3209.0,3208.9,4.86334172]
[1736946185864,1.22566,3209.0,3208.9,4.86334172]
[1736946186064,0.9139,3209.0,3208.7,0.4871]
[1736946186365,0.31178,3208.9,3208.8,0.31177]
[1736946187165,0.9139,3209.0,3208.7,0.4871]
[1736946187368,1.22566,3209.0,3208.9,0.31177]
[1736946187557,0.4891,3209.3,3208.7,0.9773]
[1736946187868,0.31174,3209.3,3209.2,0.31174]
[1736946188558,0.31173,3209.4,3209.3,0.31172]
[1736946188759,0.31173,3209.4,3209.3,41.11172]
[1736946190565,0.31173,3209.4,3209.3,40.8]
[1736946190864,2.78213085,3209.4,3209.3,40.8]
[1736946192060,0.31173,3209.4,3209.3,41.11173]
[1736946192766,1.4407,3209.5,3209.4,0.31172]
[1736946192767,0.9552,3209.5,3209.4,0.31172]
[1736946192960,0.4996,3209.5,3209.4,0.31172]
[1736946193160,0.4996,3209.5,3209.4,0.78392]
[1736946193364,0.3117,3209.7,3209.6,0.31169]
[1736946194268,0.4603,3209.8,3209.4,3.68]
[1736946194466,0.77199,3209.8,3209.7,0.31169]
[1736946201177,0.77199,3209.8,3209.7,0.77889]
[1736946204779,0.77199,3209.8,3209.7,0.4672]
[1736946204979,0.77199,3209.8,3209.7,0.77889]
[1736946209080,0.31169,3209.8,3209.7,0.77889]
[1736946209280,0.31169,3209.8,3209.7,1.27539]
[1736946211281,0.4861,3209.9,3209.7,0.9637]
[1736946211583,0.4861,3209.9,3209.8,0.31168]
[1736946211981,0.31167,3210.0,3209.9,0.31167]
[1736946212976,1.76965,3210.1,3209.7,0.9637]
[1736946213286,0.31168,3209.8,3209.7,1.27539]
[1736946215489,0.31168,3209.9,3209.8,0.31167]
[1736946216980,1.76965,3210.1,3209.7,0.9637]
[1736946217179,0.31168,3209.8,3209.7,1.27539]
[1736946221084,0.31169,3209.7,3209.6,3.2078]
[1736946221286,0.79159,3209.7,3209.6,3.5195]
[1736946223083,0.31169,3209.8,3209.7,0.31168]
[1736946223486,0.79119,3209.8,3209.7,0.31168]
[1736946223797,0.4795,3209.8,3209.6,3.2078]
[1736946224095,0.31169,3209.7,3209.6,3.5195]
[1736946225489,0.31169,3209.7,3209.6,3.2078]
[1736946225694,0.77189,3209.7,3209.6,3.2078]
[1736946226191,0.77189,3209.7,3209.3,40.8]
[1736946226192,0.31172,3209.4,3209.3,40.8]
[1736946226589,0.31172,3209.4,3209.3,41.11173]
[1736946227101,0.31172,3209.5,3209.4,0.31171]
[1736946227399,0.31172,3209.5,3209.4,4.01651]
[1736946230301,0.31172,3209.5,3209.4,3.51951]
[1736946231910,0.31171,3209.7,3209.6,0.31169]
[1736946242020,0.79118,3209.8,3209.7,0.31169]
[1736946243210,0.31168,3209.8,3209.7,0.31169]
[1736946243410,0.4773,3210.0,3209.9,0.31167]
[1736946244021,0.78896,3210.0,3209.9,0.31167]
[1736946244215,0.4773,3210.0,3209.9,0.31167]
[1736946244411,0.78896,3210.0,3209.9,0.31167]
[1736946244714,0.5218,3210.0,3209.9,0.31167]
[1736946244915,0.83346,3210.0,3209.9,0.31167]
[1736946245315,0.5218,3210.0,3209.9,0.31167]
[1736946245720,0.83346,3210.0,3209.9,0.31167]
[1736946249520,0.0445,3210.0,3209.9,0.31167]
[1736946249923,0.0445,3210.0,3209.9,0.77057]
[1736946250123,0.4637,3210.4,3210.3,0.31163]
[1736946250629,0.3116,3210.7,3210.6,0.31159]
[1736946251128,0.3116,3210.7,3210.6,3.51939]
[1736946251323,1.28039,3210.8,3210.7,0.31159]
[1736946251924,1.28039,3210.8,3210.7,41.11159]
[1736946252225,1.28039,3210.8,3210.7,41.57049]
[1736946252929,1.28039,3210.8,3210.7,41.11159]
[1736946253126,8.103554,3210.8,3210.7,40.8]
[1736946253327,7.791964,3210.8,3210.5,0.31161]
[1736946253529,2.47040085,3210.6,3210.2,3.6651]
[1736946253728,0.31163,3210.3,3210.2,3.51944]
[1736946253930,0.31163,3210.3,3210.2,44.31944]
[1736946254131,0.31163,3210.3,3210.2,44.0078]
[1736946254330,0.31163,3210.3,3210.2,44.31944]
[1736946254528,0.77063,3210.3,3210.2,44.31944]
[1736946255331,0.77063,3210.3,3210.2,41.11164]
[1736946256130,0.77063,3210.3,3210.2,40.8]
[1736946256330,3.24103085,3210.3,3210.2,40.8]
[1736946256632,0.31167,3209.9,3209.8,3.2078]
[1736946256934,2.78207085,3209.9,3209.8,3.2078]
[1736946257731,0.31167,3209.9,3209.8,3.2078]
[1736946258328,0.31167,3209.9,3209.8,44.0078]
[1736946258525,0.78587,3209.9,3209.8,44.0078]
[1736946260133,0.4621,3210.0,3209.8,44.0078]
[1736946260331,0.77377,3210.0,3209.9,0.31167]
[1736946261328,0.77377,3210.0,3209.9,0.81397]
[1736946262139,0.31165,3210.2,3210.1,0.31165]
[1736946262437,0.31451091,3210.3,3210.2,0.31164]
[1736946262629,0.00287091,3210.3,3210.2,0.31164]
[1736946262830,0.00287091,3210.3,3210.2,3.51944]
[1736946263836,0.00287091,3210.3,3210.2,44.31944]
[1736946264833,0.31450091,3210.3,3210.2,44.31944]
[1736946265236,2.78490176,3210.3,3210.2,44.0078]
[1736946265535,2.78490176,3210.3,3209.7,3.2078]
[1736946265536,0.31168,3209.8,3209.7,3.2078]
[1736946266036,0.31168,3209.8,3209.7,44.0078]
[1736946273852,3.2078,3209.9,3209.4,0.4993]
[1736946274147,3.2078,3209.9,3209.3,4.01973]
[1736946274148,0.31172,3209.4,3209.3,4.01973]
[1736946274352,0.31172,3209.4,3209.3,44.81973]
[1736946276144,0.31172,3209.4,3209.3,44.508]
[1736946276348,0.31172,3209.4,3209.3,44.81973]
[1736946278151,0.31172,3209.4,3209.3,41.61193]
[1736946280048,0.31172,3209.5,3209.3,41.3002]
[1736946280252,0.31171,3209.6,3209.5,0.3117]
[1736946281056,0.31171,3209.6,3209.5,0.7746]
[1736946299455,0.31169,3209.9,3209.8,0.31167]
[1736946299959,0.31167,3210.0,3209.9,0.31166]
[1736946300361,0.3117,3209.8,3209.7,0.31169]
[1736946300662,0.3117,3209.6,3209.5,0.77461]
[1736946302057,0.3117,3209.6,3209.5,0.31171]
[1736946302248,0.31171,3209.5,3209.4,3.51952]
[1736946302452,2.78211085,3209.5,3209.4,3.51952]
[1736946302855,2.78211085,3209.5,3209.4,3.2078]
[1736946303262,0.31176,3209.0,3208.9,3.2078]
[1736946303567,0.31177,3208.9,3208.8,4.86334172]
[1736946303749,1.79207,3208.9,3208.8,45.66334172]
[1736946304359,5.18477234,3208.9,3208.8,40.8]
[1736946304658,0.31182,3208.5,3208.4,0.31181]
[1736946305256,0.31182,3208.5,3208.4,40.8]
[1736946305862,2.78222085,3208.5,3208.4,40.8]
[1736946316960,6.29946743,3208.5,3208.4,40.8]
[1736946317463,0.31182,3208.5,3208.4,41.11182]
[1736946317767,0.31182,3208.5,3208.4,40.8]
[1736946318067,0.31182,3208.5,3208.4,41.11182]
[1736946318576,0.31182,3208.5,3208.4,40.8]
[1736946319260,0.31182,3208.5,3208.4,41.11182]
[1736946320667,0.31182,3208.5,3208.4,40.8]
[1736946321763,0.31182,3208.5,3208.4,41.2891]
[1736946322464,0.31182,3208.5,3208.4,41.60092]
[1736946322862,0.31182,3208.5,3208.4,41.2891]
[1736946323367,0.31182,3208.5,3208.4,41.60092]
[1736946323567,0.31182,3208.5,3208.4,40.8]
[1736946324771,2.78222085,3208.5,3208.4,40.8]
[1736946327271,0.9886,3208.9,3208.4,40.8]
[1736946327468,0.3118,3208.7,3208.6,0.31179]
[1736946327968,0.31181,3208.5,3208.4,40.8]
[1736946335174,0.78781,3208.5,3208.4,40.8]
[1736946336474,4.15488482,3208.5,3208.4,40.8]
[1736946336673,0.31184,3208.2,3208.1,0.9515]
[1736946337179,0.31184,3208.2,3208.1,41.7515]
[1736946341177,0.31184,3208.2,3208.1,42.06335]
[1736946341982,0.31184,3208.2,3208.1,41.7515]
[1736946343081,3.2078,3208.2,3207.5,3.2078]
[1736946343276,2.78230085,3207.6,3207.5,3.7035]
[1736946343681,2.78230085,3207.6,3207.5,44.5035]
[1736946344473,2.78230085,3207.6,3207.5,44.0078]
[1736946347489,3.24650085,3207.6,3207.5,44.0078]
[1736946348381,6.66365522,3207.6,3207.5,44.0078]
[1736946348781,2.78230085,3207.6,3207.5,44.0078]
[1736946352184,6.29448139,3207.6,3207.5,44.0078]
[1736946358288,6.29448139,3207.6,3207.5,40.8]
[1736946358484,0.31192,3207.3,3207.2,0.4652]
[1736946358886,0.31192,3207.3,3207.2,41.2652]
[1736946359489,1.27652,3207.3,3207.2,41.2652]
[1736946363980,7.16824322,3207.3,3207.2,40.8]
[1736946364184,6.85632322,3207.3,3206.6,0.9753]
[1736946364393,2.78238085,3206.7,3206.6,0.4846]
[1736946364585,0.77999,3206.6,3206.2,0.4907]
[1736946364783,2.78242085,3206.3,3206.2,42.2758]
[1736946365986,6.14956912,3206.3,3206.2,40.8]
[1736946368488,3.67916827,3206.3,3206.2,40.8]
[1736946368690,0.31202,3206.3,3206.2,40.8]
[1736946370088,3.667,3206.6,3206.2,40.8]
[1736946370282,3.5198,3206.6,3206.5,0.312]
[1736946370494,0.312,3206.5,3206.4,0.31201]
[1736946370791,0.31201,3206.4,3206.3,1.25082]
[1736946371596,0.31201,3206.4,3206.3,0.9388]
[1736946371782,0.31201,3206.4,3206.3,0.4567]
[1736946371989,3.29287728,3206.4,3206.1,0.4922]
[1736946372287,2.47040085,3206.2,3206.0,3.2078]
[1736946372594,0.31204,3206.1,3206.0,44.0078]
[1736946372798,4.07051728,3206.1,3206.0,44.0078]
[1736946377496,4.07051728,3206.1,3206.0,40.8]
[1736946378088,4.07051728,3206.1,3205.7,0.9686]
[1736946378089,0.31207,3205.8,3205.7,0.9686]
[1736946381992,0.31207,3205.8,3205.7,0.4767]
[1736946386700,0.31209,3205.6,3205.5,3.6899]
[1736946386898,2.78249085,3205.6,3205.5,4.1573]
[1736946387098,0.31209,3205.6,3205.5,4.1573]
[1736946390200,0.31209,3205.7,3205.5,4.1573]
[1736946390398,0.31207,3205.9,3205.8,0.31206]
[1736946390600,6.45829085,3206.2,3205.5,4.1573]
[1736946390898,0.31209,3205.7,3205.6,0.31208]
[1736946393301,0.31205,3206.1,3206.0,0.31204]
[1736946393510,0.31204,3206.2,3206.1,0.31203]
[1736946393696,3.2078,3206.6,3206.1,0.9647]
[1736946393903,2.46819125,3206.9,3206.4,3.2078]
[1736946394104,0.31198,3206.8,3206.7,0.31197]
[1736946394298,0.31198,3206.8,3206.7,41.11197]
[1736946395604,3.29761765,3207.1,3207.0,0.31195]
[1736946395808,6.45575125,3207.6,3207.1,0.31194]
[1736946396005,6.45575125,3207.6,3207.3,0.31192]
[1736946396006,0.31192,3207.4,3207.3,0.31192]
[1736946396704,3.6748926,3207.5,3207.4,0.31191]
[1736946398411,0.31191,3207.5,3207.4,0.31191]
[1736946398807,2.78009125,3207.6,3207.5,0.31191]
[1736946400610,2.46819125,3207.6,3207.5,0.31191]
[1736946401117,2.78009125,3207.6,3207.4,3.51971]
[1736946401715,0.31191,3207.5,3207.4,3.51971]
[1736946401906,2.78009125,3207.6,3207.4,3.51971]
[1736946402410,0.31191,3207.5,3207.4,3.51971]
[1736946404113,0.31189,3207.7,3207.5,0.31191]
[1736946404415,0.31189,3207.7,3207.6,0.3119]
[1736946405208,2.46819125,3207.9,3207.4,3.2078]
[1736946405415,0.468,3207.6,3207.5,0.31191]
[1736946405609,0.468,3207.6,3207.5,0.76601]
[1736946406813,0.468,3207.6,3207.5,41.56601]
[1736946407013,0.7799,3207.6,3207.5,41.56601]
[1736946407616,0.3119,3207.6,3207.5,41.56601]
[1736946407823,0.3119,3207.6,3207.5,42.06311]
[1736946408514,0.4553,3207.8,3207.5,42.2375]
[1736946408715,0.31189,3207.7,3207.6,0.31189]
[1736946408915,0.4553,3207.8,3207.7,0.31189]
[1736946408916,0.31188,3207.8,3207.7,0.31189]
[1736946414918,0.3119,3207.7,3207.6,0.31189]
[1736946418221,0.31188,3207.8,3207.7,0.31188]
[1736946418724,0.4725,3207.9,3207.8,0.31188]
[1736946418917,0.31186,3208.0,3207.9,0.31187]
[1736946419116,0.9656,3208.1,3207.6,0.77975]
[1736946419321,1.27745,3208.1,3208.0,0.31186]
[1736946420023,0.9656,3208.1,3208.0,0.31186]
[1736946420223,0.4929,3208.1,3208.0,3.51966]
[1736946420418,0.31182,3208.5,3208.4,0.31181]
[1736946420618,0.31183,3208.4,3208.3,0.31182]
[1736946420922,0.31185,3208.1,3208.0,3.2078]
[1736946421118,2.78004125,3208.1,3208.0,3.2078]
[1736946426430,0.3119,3207.7,3207.6,0.31189]
[1736946427828,0.3119,3207.6,3207.5,44.3197]
[1736946428018,0.8011,3207.6,3207.5,44.3197]
[1736946431734,0.8011,3207.6,3207.5,44.0078]
[1736946432223,0.8011,3207.6,3207.5,44.31971]
[1736946432425,0.4892,3207.6,3207.5,44.31971]
[1736946432627,0.31189,3207.7,3207.6,0.3119]
[1736946433529,1.47943928,3207.7,3207.6,0.3119]
[1736946437037,1.16754928,3207.7,3207.6,0.3119]
[1736946437238,1.47943928,3207.7,3207.6,0.3119]
[1736946441340,1.47943928,3207.7,3207.5,44.0078]
[1736946441341,0.3119,3207.6,3207.5,41.1119]
[1736946442042,0.3119,3207.6,3207.5,44.3197]
[1736946442437,0.4567,3207.9,3207.6,0.3119]
[1736946442640,1.47939928,3208.2,3208.1,0.31183]
[1736946443031,5.0626834,3208.2,3208.1,0.31183]
[1736946445540,0.31189,3207.7,3207.6,3.2078]
[1736946445745,2.7779472,3207.7,3207.6,3.2078]
[1736946446241,0.3119,3207.6,3207.5,0.31191]
[1736946446444,0.3119,3207.6,3207.5,0.76931]
[1736946446646,0.31189,3207.7,3207.6,0.3119]
[1736946446831,0.31186,3208.0,3207.9,0.31186]
[1736946447541,0.4908,3208.1,3207.7,0.5029]
[1736946447851,2.4660572,3208.0,3207.7,0.5029]
[1736946448035,0.31188,3207.8,3207.7,0.81479]
[1736946448431,0.31187,3207.9,3207.8,0.31187]
[1736946449040,0.4984,3208.1,3207.7,0.5029]
[1736946449245,0.31185,3208.1,3208.0,0.31185]
[1736946449539,0.31187,3208.0,3207.9,0.31186]
[1736946450044,0.31188,3207.8,3207.7,0.5029]
[1736946450842,0.31189,3207.7,3207.6,3.2078]
[1736946451044,1.25979,3207.7,3207.6,3.2078]
[1736946453852,0.31191,3207.5,3207.4,40.8]
[1736946457442,0.31191,3207.5,3207.4,44.0078]
[1736946458842,2.7779672,3207.5,3207.4,3.2078]
[1736946460247,2.4660572,3207.5,3207.3,40.8]
[1736946460442,0.76671,3207.4,3207.3,40.8]
[1736946460949,0.31191,3207.4,3207.3,40.8]
[1736946461945,0.31191,3207.4,3207.0,3.2078]
[1736946461946,0.31194,3207.1,3207.0,3.2078]
[1736946462140,0.31197,3206.8,3206.7,4.83454928]
[1736946462457,6.17610752,3206.8,3206.7,40.8]
[1736946462950,5.86413752,3206.8,3206.5,3.2078]
[1736946463147,0.31199,3206.6,3206.5,3.2078]
[1736946463454,0.31199,3206.6,3206.5,44.0078]
[1736946465748,1.23773,3206.9,3206.5,44.0078]